Cogmind - Beta 13 @@@ ROGUE MODE // 2024.05.08 @ 04:33:56 Player: Exceptionally Mediocre Result: Destroyed by D-53 Grenadier with Mini Grenade Launcher Performance ------------- Evolutions (0) 0 Regions Visited (4) 800 Robots Destroyed (42) 210 Value Destroyed (605) 605 Prototype IDs (2) 40 Alien Tech Used (0) 0 Bonus (82) 82 TOTAL SCORE: 1737 Bonus ------- Follower Combat Kills 82 Cogmind --------- Core Integrity 0/250 Matter 231/300 Energy 150/150 System Corruption 0% Temperature Cool (13) Movement Treading (320) Ox2 Location -9/Mines Parts ------- > --- POWER (1) -------- Micro Nuclear Core > --- PROPULSION (2) --- Light Treads Light Treads > --- UTILITY (2) ------ Huge Storage Unit Hardened Light Armor Plating > --- WEAPON (2) ------- Light Assault Rifle Rocket Launcher > --- INVENTORY (25) --- Light Ion Engine Micro Nuclear Core Light Treads Light Treads Light Treads Light Treads Light Treads Light Treads High-capacity Storage Unit Hardened Light Armor Plating Hardened Light Armor Plating Hardened Light Armor Plating Hacking Suite Hacking Suite Makeshift System Shield Skeleton Box Sensor Drone Bay (20/20) Light Assault Rifle Peak State ------------ > --- POWER ------------ Micro Nuclear Core > --- PROPULSION ------- Light Treads Light Treads > --- UTILITY ---------- High-capacity Storage Unit Sensor Drone Bay > --- WEAPON ----------- Light Assault Rifle Gauss Rifle > --- INVENTORY -------- Light Ion Engine Micro Nuclear Core Light Treads Light Treads Light Treads Light Treads Light Treads Light Treads Hardened Light Armor Plating Hardened Light Armor Plating Hardened Light Armor Plating Hardened Light Armor Plating Hacking Suite Hacking Suite Makeshift System Shield Skeleton Box Light Assault Rifle Rocket Launcher [Rating: 23] Favorites ----------- Power Ion Engine Engine Ion Engine Power Core Micro Nuclear Core Propulsion Light Treads Treads Light Treads Utility Hardened Light Armor Plating Device Improved Terrain Scanner Storage Large Storage Unit Protection Hardened Light Armor Plating Weapon Light Assault Rifle Energy Gun Medium Laser Ballistic Gun Light Assault Rifle Launcher Rocket Launcher Build | -11 -10 -10 -10 -9 ------- Run | Yrd Mat Min Exi Min Slots Evolved . | . . . . . Power . | . . . . . Propulsion . | . . . . . Utility . | . . . . . Weapon . | . . . . . Parts Attached 29 | 8 4 4 6 7 Power 3 | 1 . 1 . 1 Engine 2 | 1 . 1 . . Core 1 | . . . . 1 Reactor . | . . . . . Propulsion 7 | 2 2 1 2 . Treads 7 | 2 2 1 2 . Leg . | . . . . . Wheel . | . . . . . Hover . | . . . . . Flight . | . . . . . Utility 10 | 2 2 . 3 3 Device 3 | 1 . . 1 1 Storage 4 | 1 1 . 1 1 Processor . | . . . . . Hackware . | . . . . . Protection 3 | . 1 . 1 1 Artifact . | . . . . . Weapon 9 | 3 . 2 1 3 Energy Gun 1 | 1 . . . . Energy Cannon . | . . . . . Ballistic Gun 7 | 2 . 2 1 2 Ballistic Cannon . | . . . . . Launcher 1 | . . . . 1 Special Weapon . | . . . . . Impact Weapon . | . . . . . Slashing Weapon . | . . . . . Piercing Weapon . | . . . . . Special Melee Weapon . | . . . . . Unidentified Prototypes 2 | . . . 1 1 Parts Lost 7 | . 2 4 . 1 Power 1 | . . 1 . . Propulsion 2 | . 1 1 . . Utility 1 | . 1 . . . Weapon 3 | . . 2 . 1 Highest Loss Streak 2 | . 1 2 . 1 To Critical Strikes . | . . . . . Average Slot Usage (%) 96 | . 90 99 100 100 Engine 12 | . 14 14 14 2 Core 1 | . . . . 11 Treads 28 | . 28 28 28 28 Storage 14 | . 14 14 14 14 Protection 10 | . 2 14 14 14 Ballistic Gun 27 | . 28 27 28 27 Naked Turns . | . . . . . Heaviest Build 96 | 14 33 33 50 96 Greatest Support 40 | 40 40 40 40 40 Greatest Overweight (x) 2 | 1 . . 1 2 Average Overweight (x) . | . . . . 1 Largest Inventory Capacity 25 | 8 15 15 20 25 Average Capacity 14 | 7 10 15 15 21 Most Carried 19 | 2 13 14 15 19 Average Carried 11 | 1 8 12 13 17 Final Capacity 25 | 8 15 15 20 25 Final Carried 18 | 2 13 11 15 18 Class Distribution -------------------- 100% | Mutant Dominant Class ---------------- Mutant | -10/Materials Mutant | -10/Mines Mutant | -10/Exiles Mutant | -9/Mines Resources | -11 -10 -10 -10 -9 ----------- Run | Yrd Mat Min Exi Min Matter Collected 989 | 237 421 130 70 131 Remotely . | . . . . . Salvage Created 1176 | 19 606 182 94 275 Parts 88 | 4 49 17 5 13 Haulers Intercepted 1 | . 1 . . . Recyclers Shooed 3 | . 1 1 . 1 Parts Field Recycled . | . . . . . Retrieved Matter . | . . . . . Parts Self-Destructed . | . . . . . Prevented . | . . . . . Kills | -11 -10 -10 -10 -9 ------- Run | Yrd Mat Min Exi Min Combat Hostiles Destroyed 29 | . 14 8 . 7 Guns 28 | . 14 8 . 6 AOE 1 | . . . . 1 Classes Destroyed 10 | 1 8 . . 1 Worker 2 | . 2 . . . Builder 1 | . 1 . . . Tunneler 3 | 1 1 1 . . Hauler 1 | . 1 . . . Recycler 3 | . 1 . . 2 Operator 3 | . 3 . . . Watcher 3 | . 3 . . . Swarmer 19 | . 9 6 . 4 Grunt 7 | . 5 2 . . Assembled 3 | . . . . 3 Best Kill Streak 8 | 1 8 3 . 3 Combat Bots Only 5 | . 5 3 . 2 Max Kills in Single Turn 1 | 1 1 1 . 1 Gunslinging . | . . . . . Exploded 1 | . . . . 1 Melee . | . . . . . Uniques/NPCs Destroyed . | . . . . . Combat | -11 -10 -10 -10 -9 -------- Run | Yrd Mat Min Exi Min Hostile Shots Fired 190 | . 111 50 . 29 Missed 59 | . 45 9 . 5 Damage Taken 1399 | . 590 465 . 344 Core 258 | . 105 107 . 46 Absorbed by Shields . | . . . . . Core Remaining (%) 100 | 100 . . . . Volleys Fired 155 | 3 84 32 15 21 Largest 2 | 2 2 2 2 2 Hottest 53 | 40 40 40 40 53 Shots Fired 304 | 6 168 60 30 40 Gun 301 | 6 168 60 30 37 Cannon . | . . . . . Launcher 3 | . . . . 3 Special . | . . . . . Kinetic 301 | 6 168 60 30 37 Thermal . | . . . . . Explosive 3 | . . . . 3 Electromagnetic . | . . . . . Robot Hit Streak 30 | 1 8 5 30 4 Robot Miss Streak 4 | 2 4 3 . 3 Penetration Max . | . . . . . Secondary Targets 3 | . 3 . . . Max Gunslinging Chain 1 | . 1 . . . Shots Hit Robots 178 | 1 96 32 29 20 Core Hits 76 | 1 41 16 4 14 Critical Kills 1 | . 1 . . . Critical Parts Destroyed 2 | . . . 2 . Critical Strikes 3 | . 1 . 2 . Destroy 3 | . 1 . 2 . Melee Attacks . | . . . . . Impact . | . . . . . Slashing . | . . . . . Piercing . | . . . . . Sneak Attacks . | . . . . . Combat Hostiles . | . . . . . Follow-up Attacks . | . . . . . Damage Inflicted 1997 | 14 1023 325 230 405 Guns 1897 | 14 1023 325 230 305 Cannons . | . . . . . Explosions 100 | . . . . 100 Melee . | . . . . . Ramming . | . . . . . Kinetic 1897 | 14 1023 325 230 305 Thermal . | . . . . . Explosive 100 | . . . . 100 Electromagnetic . | . . . . . Impact . | . . . . . Slashing . | . . . . . Piercing . | . . . . . Highest Corruption . | . . . . . Average Corruption . | . . . . . Corruption Purged . | . . . . . Corruption Blocked . | . . . . . Overload Shots . | . . . . . Overflow Damage 1 | . . . . 1 Projectiles . | . . . . . Explosions 1 | . . . . 1 Melee . | . . . . . Knockbacks . | . . . . . Impact . | . . . . . Kinetic . | . . . . . Secondary . | . . . . . Self-Inflicted Damage 59 | . . . . 59 Shots 2 | . . . . 2 Rammed . | . . . . . Targets Rammed . | . . . . . Kicked . | . . . . . Crushed . | . . . . . Highest Temperature 129 | . 20 129 30 80 Average Temperature 31 | . 8 48 13 29 Received Heat Transfer 315 | . 114 195 . 6 Siege Activations . | . . . . . Robots Corrupted . | . . . . . Combat Hostiles . | . . . . . Parts Fried . | . . . . . Impact Corruptions . | . . . . . Robots Melted . | . . . . . Combat Hostiles . | . . . . . Parts Melted . | . . . . . Heat Transferred . | . . . . . Parts Sabotaged . | . . . . . Parts Stolen . | . . . . . Parts Stripped . | . . . . . Power Chain Reactions . | . . . . . Alert | -11 -10 -10 -10 -9 ------- Run | Yrd Mat Min Exi Min Peak Influence 316 | 5 316 171 . 248 Initial 66 | . 3 66 . . Average 110 | 2 164 44 . 127 Maximum Alert Level 1 | . 1 . . 1 Low Security (%) 85 | 100 83 100 . 62 Level 1 14 | . 16 . . 37 Level 2 . | . . . . . Level 3 . | . . . . . Level 4 . | . . . . . Level 5 . | . . . . . High Security . | . . . . . Max Security . | . . . . . Squads Dispatched 4 | . 3 . . 1 Investigation 1 | . . . . 1 Extermination . | . . . . . Reinforcement 3 | . 3 . . . Assault . | . . . . . Garrison . | . . . . . Intercept . | . . . . . Searches Triggered . | . . . . . Construction Impeded . | . . . . . Haulers Reinforced . | . . . . . Active Scanning Responses . | . . . . . Cargo Convoy Interrupts . | . . . . . Stealth | -11 -10 -10 -10 -9 --------- Run | Yrd Mat Min Exi Min Distress Signals 2 | . 1 . . 1 Communications Jammed . | . . . . . Distress Signals . | . . . . . Times Spotted 49 | . 26 9 . 14 Peak Tracking Total 4 | . 4 3 . 3 Tactical Retreats 2 | . 1 1 . . Traps | -11 -10 -10 -10 -9 ------- Run | Yrd Mat Min Exi Min Traps Triggered 2 | . 2 . . . Indirectly . | . . . . . Trap Hack Attempts . | . . . . . Triggered . | . . . . . Disarmed . | . . . . . Reprogrammed . | . . . . . Reused . | . . . . . Traps Extracted . | . . . . . Installed . | . . . . . Triggered . | . . . . . Machines | -11 -10 -10 -10 -9 ---------- Run | Yrd Mat Min Exi Min Machines Disabled 3 | . 1 . . 2 Max in Single Turn 1 | . 1 . . . Machines Repaired . | . . . . . Machines Dismantled . | . . . . . Machines Sabotaged . | . . . . . Overloaded Fab Kills . | . . . . . Hacking | -11 -10 -10 -10 -9 --------- Run | Yrd Mat Min Exi Min Machines Accessed 3 | . 1 . . 2 Terminals 1 | . 1 . . . Fabricators . | . . . . . Repair Stations . | . . . . . Recycling Units . | . . . . . Scanalyzers . | . . . . . Garrison Access . | . . . . . Total Hacks 4 | . 2 . . 2 Successful 4 | . 2 . . 2 Failed . | . . . . . Catastrophic . | . . . . . Database Lockouts . | . . . . . Manual 3 | . 2 . 1 . Terminals 2 | . 2 . . . Fabricators . | . . . . . Repair Stations . | . . . . . Recycling Units . | . . . . . Scanalyzers . | . . . . . Garrison Access . | . . . . . Terminal Hacks 3 | . 1 . . 2 Open Door 2 | . . . . 2 Terminal Index 1 | . 1 . . . Fabricator Hacks . | . . . . . Repair Station Hacks . | . . . . . Recycling Unit Hacks . | . . . . . Scanalyzer . | . . . . . Garrison Access Hacks . | . . . . . Unauthorized Hacks 1 | . 1 . . . Terminals 1 | . 1 . . . Botnet 1 | . 1 . . . Fabricators . | . . . . . Repair Stations . | . . . . . Recycling Units . | . . . . . Scanalyzers . | . . . . . Garrison Access . | . . . . . Data Cores Recovered . | . . . . . Used . | . . . . . Hacking Detections 1 | . 1 . . . Full Trace Events . | . . . . . Feedback Events . | . . . . . Feedback Blocked . | . . . . . Robot Schematics Acquired . | . . . . . Robots Built . | . . . . . Authchips . | . . . . . Time . | . . . . . Total Robot Build Rating . | . . . . . Part Schematics Acquired . | . . . . . Parts Built . | . . . . . Authchips . | . . . . . Time . | . . . . . Total Part Build Rating . | . . . . . Parts Repaired . | . . . . . Time . | . . . . . Parts Recycled . | . . . . . Recycled Matter . | . . . . . Retrieved Matter . | . . . . . Retrieved Components . | . . . . . Parts Scanalyzed . | . . . . . Part Schematics Acquired . | . . . . . Parts Damaged . | . . . . . Bothacking | -11 -10 -10 -10 -9 ------------ Run | Yrd Mat Min Exi Min Used RIF Installer . | . . . . . Robots Hacked . | . . . . . Non-combat . | . . . . . Combat . | . . . . . Robot Hacks Applied . | . . . . . Relay Couplers Released . | . . . . . Fabnet Peak Effective % . | . . . . . Robots Rewired 3 | . . . 3 . Allies Hacked . | . . . . . Hacks Repelled . | . . . . . Allies | -11 -10 -10 -10 -9 -------- Run | Yrd Mat Min Exi Min Total Allies 3 | . . . 3 . Largest Group 3 | . . . 3 3 Highest-Rated Group 50 | . . . 50 50 Highest-Rated Ally 21 | . . . 21 21 Total Orders . | . . . . . Ally Attacks 23 | . . . . 23 Total Damage 355 | . . . . 355 Kills 8 | . . . . 8 Allies Corrupted . | . . . . . Allies Melted . | . . . . . Intel | -11 -10 -10 -10 -9 ------- Run | Yrd Mat Min Exi Min Robot Analysis Total . | . . . . . Derelict Logs Recovered 3 | . . 2 . 1 Drone Launches . | . . . . . Drone Recoveries . | . . . . . Exploration | -11 -10 -10 -10 -9 ------------- Run | Yrd Mat Min Exi Min Turns Passed 3429 | 116 1155 865 832 461 Spaces Moved 1715 | 62 563 480 456 154 Core 5 | 5 . . . . Treads 1710 | 57 563 480 456 154 Legs . | . . . . . Wheels . | . . . . . Hover . | . . . . . Flight . | . . . . . Fastest Speed 50 | 50 160 160 160 240 Average Speed 170 | 152 160 160 167 255 Slowest Speed 320 | 160 160 160 240 320 Overloaded Moves . | . . . . . Propulsion Burnouts . | . . . . . Robots Hopped . | . . . . . Cave-ins Triggered . | . . . . . Exploration Rate (%) 61 | 5 81 97 89 33 Regions Visited 4 Branch Regions 3 Pre-discovered Areas 2 | . . 1 . 1 Known Exits Taken . | . . . . . Unknown Exits Taken 4 | 1 1 1 1 . Scrap Searched 1 | . . . . 1 Spaces Dug 11 | . . . . 11 Terrain Destroyed 39 | . . . . 39 Melee . | . . . . . Projectile 1 | . . . . 1 AOE 38 | . . . . 38 Terrain Rammed . | . . . . . Walls Destroyed . | . . . . . Machines Disabled . | . . . . . Actions | -11 -10 -10 -10 -9 --------- Run | Yrd Mat Min Exi Min Total 1957 | 74 668 524 506 185 Wait 7 | . . 7 . . Move 1711 | 61 562 479 455 154 Hop . | . . . . . Pick Up 28 | 2 14 2 8 2 Fast Attach 10 | 7 3 . . . Attach 6 | . 1 4 . 1 Detach 1 | . 1 . . . Swap 13 | 1 . . 6 6 Drop 11 | . 3 . 7 1 Fire 155 | 3 84 32 15 21 Melee . | . . . . . Ram . | . . . . . Kick . | . . . . . Crush . | . . . . . Escape Stasis . | . . . . . Rewire 15 | . . . 15 . Trap . | . . . . . Miscellaneous . | . . . . . Route ------- -11/Scrapyard -10/Materials (discovered 4 exits: *Mat x3 / [*Min]) -10/Mines (discovered 3 exits: *Mat x2 / *Exi) -10/Exiles -9/Mines History --------- Turn | Location | Event 24 | -11/Scrapyard | Discovered new exit (range 15) 117 | -11/Scrapyard | Entered Materials 308 | -10/Materials | Build established: Mutant 558 | -10/Materials | Discovered new exit (range 4) 825 | -10/Materials | Discovered new exit (range 3) 895 | -10/Materials | Discovered new exit (range 15) 1130 | -10/Materials | Discovered new exit (range 4) 1272 | -10/Materials | Entered Mines 1330 | -10/Mines | Identified exit to Materials 1334 | -10/Mines | Discovered exit to Materials (range 12) 1375 | -10/Mines | Received a Rocket Launcher from a helpful Derelict 1481 | -10/Mines | Learned location of Zion (-6) 1515 | -10/Mines | Core integrity fell below 50% 1581 | -10/Mines | Core integrity fell below 20% 2130 | -10/Mines | Deemed a non-threat by the Exiles lab entrance 2130 | -10/Mines | Discovered new exit (range 5) 2137 | -10/Mines | Entered Exiles 2137 | -10/Exiles | Found Exiles lab destroyed 2346 | -10/Exiles | Opened EX-Vault 2354 | -10/Exiles | Found Prototype Device 2371 | -10/Exiles | Identified Skeleton Box 2947 | -10/Exiles | Discovered new exit (range 11) 2969 | -10/Exiles | Entered Mines 2969 | -9/Mines | Accompanied by 3 allies 3035 | -9/Mines | Met a Derelict shopkeep closing up shop 3242 | -9/Mines | Found the Drone Emporium 3253 | -9/Mines | Found Prototype Device 3254 | -9/Mines | Identified Sensor Drone Bay 3350 | -9/Mines | Assembled infested the area 3430 | -9/Mines | Destroyed by D-53 Grenadier with Mini Grenade Launcher Last Messages --------------- 03304_ Acquired 10 matter. 03305_ K-01 Serf collects debris. 03350_ ALERT: Infestation in the mines, dispatching Demolisher response squad. 03385_ Slug penetrates as-62642. 03385_ as-62642 destroyed. 03385_ as-64841 suffers critical hit (Destroy). 03385_ as-64841 destroyed. 03388_ Slug penetrates as-99892. 03390_ as-99892 destroyed. 03400_ Slug penetrates as-16146. 03405_ Destroyed Asb. Hover Unit. 03408_ Slug penetrates Wall. 03411_ Slug penetrates as-16146. 03414_ as-16146 destroyed. 03416_ Acquired 20 matter. 03426_ as-68954 destroyed. 03426_ Gauss Rifle destroyed. 03426_ Destroyed Gauss Rifle. 03427_ as-16753 destroyed. Map ----- +----------------------------------------------------+ | ?????????????????????# #????#### #### #? | | ?????????????????????# #???????## ##??## # | | ?????????????????????# #????????####????### | | ?????????????????????# #??????????????????#### | | ?????????????######??# #?????????????????????# | | ????????????##""""##?# #?????????????????????# # | | ????????????#" "#?# %#?????????????????????# # | | ????????????#" "#?# ######????????????????? # | | ????????????## #### ##???????????????? # | | ????????????### ## ## #???????????????? # | | ????????????# X #???????????????? # | | ?????#??????# #???????????????? # | | ???## ?????# ## #???????????????? # | | ## ###?## ##? #???????????????? ? | | ### # ##?? ?????????????????? | | # ##??###????????????????? | | % #= #?????????????????????? | | = *### #??????????????????? | | # %#?## #####??????????????????? | | ## ## r ??####??????????????????????? | | ???????## # ! ???????????????????????????? | | ????????# # d ###????????????????????????? | | ????????## # % ###?????????????????????? | | ?????????### # ] #?????????????????????? | | ???????????## ### #?????????????????????? | | ????????????###??# = %[ @ #?????????????????????? | | ?????????????????##% #????????????????????? | | ??????????????????#!## ##????????????????????? | | ??????????????????# ###### ###???????????????????? | | ??????????????????# #????# #???????????????????? | | ??????????????????# #????### #???????????????????? | | ??????????????????# #??????# #???????????????????? | | ??????????????????# #?????? ???????????????????? | | ??????????????????# #?????? ??????????????????? | | ??????????????????# #?????# ## ?????????????????? | | ??????????????????# #?????##??###????????????????? | | ??????????????????? ?????????????????????????????? | | ??????????????????? ?????????????????????????????? | | ??????????????????? ?????????????????????????????? | | ???????????????????#?????????????????????????????? | | ?????????????????????????????????????????????????? | | ?????????????????????????????????????????????????? | | ?????????????????????????????????????????????????? | | ?????????????????????????????????????????????????? | | ?????????????????????????????????????????????????? | | ?????????????????????????????????????????????????? | | ?????????????????????????????????????????????????? | | ?????????????????????????????????????????????????? | | ?????????????????????????????????????????????????? | | ?????????????????????????????????????????????????? | +----------------------------------------------------+ Best States ------------- Heat Dissipation 25 Energy Generation 15 Energy Capacity 250 Matter Stores 300 Matter Capacity 300 Sight Range 16 Terrain Scan Range 16 Terrain Scan Density 10 Armor Coverage 150 Evasion (%) 40 Recoil Reduction 2 Item Schematics ----------------- None Robot Schematics ------------------ None Fabricated ------------ Nothing Alien Tech Used ----------------- None Achievements -------------- None Challenges ------------ None Game ------ Seed TransportMiningClaws Manual? 0 Play Time 00:18:11 Cumulative 166.6 hours Start 2024.05.08 @ 04:18:47 End 2024.05.08 @ 04:33:56 Sessions 1 Manual Loads 0 Difficulty Rogue Special Mode None Game No. 190 Rogue 190 Adventurer 0 Explorer 0 Win Type - Total 0 Types 0/0/0/0/0/0/0/0/0 Lore% 38 Gallery% 63 Achievement% 43 Wizard Run 0 Options --------- Layout 2 ASCII 0 Keyboard 1 Movement Vi Keybinds 0 Fullscreen 1 Font 24/Smallcaps Map View 50x44 Zoom Use 0% Tactical HUD 1 Map Filters NONE Filters NONE Steam 1 RUN: 1dbe0ed1-fbed-4324-b9e1-293c0bed6083